Cogmind - Beta 15 @@@ ROGUE MODE // 2025.07.27 @ 16:00:12 Player: VVRLD_D35TR0YER Result: Self-destructed Performance ------------- Evolutions (1) 500 Regions Visited (2) 400 Robots Destroyed (2) 10 Value Destroyed (61) 61 Prototype IDs (1) 20 Alien Tech Used (0) 0 Bonus (200) 200 TOTAL SCORE: 1191 Bonus ------- Pacifist 200 Cogmind --------- Core Integrity 400/400 Matter 205/300 Energy 10/100 System Corruption 0% Temperature Cool (0) Movement Flying (72) Location -9/Materials Parts ------- > --- POWER (1) -------- (None) > --- PROPULSION (4) --- Light Treads Light Treads VTOL Module VTOL Module > --- UTILITY (2) ------ Visual Processing Unit ECM Suite > --- WEAPON (2) ------- Improved Medium Laser Heavy Assault Rifle > --- INVENTORY (5) ---- Cooling System Cooling System Hardened Light Armor Plating Mini Grenade Launcher Mini Grenade Launcher Peak State ------------ > --- POWER ------------ (None) > --- PROPULSION ------- Light Treads Light Treads VTOL Module VTOL Module > --- UTILITY ---------- Visual Processing Unit Particle Charger > --- WEAPON ----------- Improved Medium Laser Heavy Assault Rifle > --- INVENTORY -------- Cooling System Cooling System Hardened Light Armor Plating Mini Grenade Launcher Mini Grenade Launcher [Rating: 17] Favorites ----------- Power None Propulsion Light Treads Treads Light Treads Leg Aluminum Leg Flight Unit VTOL Module Utility ECM Suite Device ECM Suite Processor Visual Processing Unit Protection Hardened Light Armor Plating Weapon Improved Medium Laser Energy Gun Improved Medium Laser Ballistic Gun Heavy Assault Rifle Ballistic Cannon Light Cannon Build | -11 -10 -9 ------- Run | Yrd Mat Mat Slots Evolved 2 | . . 2 Power . | . . . Propulsion 2 | . . 2 Utility . | . . . Weapon . | . . . Parts Attached 14 | 5 1 8 Power . | . . . Engine . | . . . Core . | . . . Reactor . | . . . Propulsion 5 | 3 . 2 Treads 2 | 2 . . Leg 1 | 1 . . Wheel . | . . . Hover . | . . . Flight 2 | . . 2 Utility 4 | . . 4 Device 2 | . . 2 Storage . | . . . Processor 1 | . . 1 Hackware . | . . . Protection 1 | . . 1 Artifact . | . . . Weapon 5 | 2 1 2 Energy Gun 2 | 1 . 1 Energy Cannon . | . . . Ballistic Gun 2 | 1 . 1 Ballistic Cannon 1 | . 1 . Launcher . | . . . Special Weapon . | . . . Impact Weapon . | . . . Slashing Weapon . | . . . Piercing Weapon . | . . . Special Melee Weapon . | . . . Unidentified Prototypes 1 | . . 1 Parts Lost . | . . . Power . | . . . Propulsion . | . . . Utility . | . . . Weapon . | . . . Highest Loss Streak . | . . . To Critical Strikes . | . . . Average Backups 3 | . 2 4 Power . | . . . Propulsion . | . . . Utility 2 | . 1 3 Weapon 1 | . 1 1 Tool/Special . | . . . Unused Backups 7 | . 3 4 Power . | . . . Propulsion . | . . . Utility 3 | . 2 1 Weapon 4 | . 1 3 Tool/Special . | . . . Average Slot Usage (%) 59 | . 53 64 Treads 24 | . 28 22 Flight 7 | . . 12 Device 3 | . . 5 Processor 2 | . . 4 Energy Gun 10 | . 10 10 Ballistic Gun 9 | . 10 8 Ballistic Cannon 1 | . 3 . Peak Build Rating 17 | 4 4 17 Average Rating 7 | 2 3 10 On Entrance 2 | . 4 3 Naked Turns . | . . . Heaviest Build 8 | 3 3 8 Greatest Support 20 | 20 3 8 Greatest Overweight (x) 1 | . . 1 Average Overweight (x) . | . . . Largest Inventory Capacity 5 | 5 5 5 Average Capacity 5 | 5 5 5 Most Carried 5 | 1 5 5 Average Carried 3 | . 3 4 Final Capacity 5 | 5 5 5 Final Carried 5 | . 4 5 Class Distribution -------------------- 100% | Mutant Dominant Class ---------------- Mutant | -10/Materials Mutant | -9/Materials Resources | -11 -10 -9 ----------- Run | Yrd Mat Mat Matter Collected 280 | 242 . 38 Remotely . | . . . Salvage Created 71 | . . 71 Parts 3 | . . 3 Haulers Intercepted . | . . . Recyclers Shooed . | . . . Parts Field Recycled . | . . . Retrieved Matter . | . . . Parts Self-Destructed . | . . . Prevented . | . . . Kills | -11 -10 -9 ------- Run | Yrd Mat Mat Combat Hostiles Destroyed 1 | . . 1 Guns 1 | . . 1 Classes Destroyed 2 | . . 2 Watcher 1 | . . 1 Sentry 1 | . . 1 Best Kill Streak 1 | . . 1 Combat Bots Only 1 | . . 1 Max Kills in Single Turn 1 | . . 1 Gunslinging . | . . . Exploded . | . . . Melee . | . . . Uniques/NPCs Destroyed . | . . . Combat | -11 -10 -9 -------- Run | Yrd Mat Mat Hostile Shots Fired 17 | . 7 10 Missed 8 | . 4 4 Hits 9 | . 3 6 Projectile 9 | . 3 6 Critical Strikes 1 | . . 1 Damage Taken 115 | . 34 81 Core . | . . . Absorbed by Shields . | . . . Core Remaining (%) 100 | 100 100 . Volleys Fired 9 | . 2 7 Largest 2 | . 2 2 Hottest 79 | . 70 79 Shots Fired 12 | . 3 9 Gun 12 | . 3 9 Cannon . | . . . Launcher . | . . . Special . | . . . Kinetic 4 | . 2 2 Thermal 8 | . 1 7 Explosive . | . . . Electromagnetic . | . . . Robot Hit Streak 5 | . 1 5 Robot Miss Streak 2 | . 2 2 Penetration Max . | . . . Secondary Targets . | . . . Shots Hit Robots 6 | . 1 5 Core Hits 3 | . . 3 Critical Kills . | . . . Critical Parts Destroyed . | . . . Critical Strikes . | . . . Melee Attacks . | . . . Impact . | . . . Slashing . | . . . Piercing . | . . . Sneak Attacks . | . . . Combat Hostiles . | . . . Follow-up Attacks . | . . . Damage Inflicted 95 | . 10 85 Guns 95 | . 10 85 Cannons . | . . . Explosions . | . . . Melee . | . . . Ramming . | . . . Kinetic 10 | . 10 . Thermal 85 | . . 85 Explosive . | . . . Electromagnetic . | . . . Impact . | . . . Slashing . | . . . Piercing . | . . . Highest Corruption . | . . . Average Corruption . | . . . Corruption Purged . | . . . Corruption Blocked . | . . . Overload Shots . | . . . Overflow Damage . | . . . Projectiles . | . . . Explosions . | . . . Melee . | . . . Knockbacks . | . . . Impact . | . . . Kinetic . | . . . Secondary . | . . . Self-Inflicted Damage . | . . . Shots . | . . . Rammed 1 | . 1 . Targets Rammed 1 | . 1 . Kicked . | . . . Crushed . | . . . Highest Temperature 64 | . 20 64 Average Temperature 34 | . 15 37 Received Heat Transfer 75 | . 18 57 Siege Activations . | . . . Martial Activations . | . . . Shielding Activations . | . . . Robots Disrupted . | . . . Combat Hostiles . | . . . Robots Corrupted . | . . . Combat Hostiles . | . . . Parts Fried . | . . . Impact Corruptions . | . . . Robots Melted . | . . . Combat Hostiles . | . . . Parts Melted . | . . . Heat Transferred 185 | . . 185 Parts Sabotaged . | . . . Parts Stolen . | . . . Parts Stripped . | . . . Power Chain Reactions . | . . . Alert | -11 -10 -9 ------- Run | Yrd Mat Mat Maximum Alert Level . | . . . Low Security (%) 100 | 100 100 100 Level 1 . | . . . Level 2 . | . . . Level 3 . | . . . Level 4 . | . . . Level 5 . | . . . High Security . | . . . Max Security . | . . . Peak Influence 30 | . 10 30 Initial . | . . . Average 3 | . . 5 Influence Increases 52 | . 15 37 Destroy 0b10 Robot/C 20 | . . 20 Destroy 0b10 Robot/NC 5 | . . 5 Destroy Leader 12 | . . 12 Successful Hack 15 | . 15 . Influence Decreases 52 | . 15 37 Time Decay 52 | . 15 37 Squads Dispatched 3 | . 2 1 Investigation 1 | . 1 . Extermination . | . . . Reinforcement 2 | . 1 1 Assault . | . . . Garrison . | . . . Intercept . | . . . Searches Triggered . | . . . Construction Impeded . | . . . Haulers Reinforced . | . . . Active Scanning Responses . | . . . Cargo Convoy Interrupts . | . . . Stealth | -11 -10 -9 --------- Run | Yrd Mat Mat Distress Signals . | . . . Communications Jammed . | . . . Distress Signals . | . . . Times Spotted 12 | . 6 6 Peak Tracking Total 5 | . 5 3 Tactical Retreats 1 | . . 1 Traps | -11 -10 -9 ------- Run | Yrd Mat Mat Traps Triggered 1 | . 1 . Indirectly . | . . . Trap Hack Attempts . | . . . Triggered . | . . . Disarmed . | . . . Reprogrammed . | . . . Reused . | . . . Traps Extracted . | . . . Installed . | . . . Triggered . | . . . Machines | -11 -10 -9 ---------- Run | Yrd Mat Mat Machines Disabled . | . . . Max in Single Turn . | . . . Machines Repaired . | . . . Machines Dismantled . | . . . Machines Sabotaged . | . . . Overloaded Fab Kills . | . . . Hacking | -11 -10 -9 --------- Run | Yrd Mat Mat Machines Accessed 5 | . 3 2 Terminals 4 | . 2 2 Fabricators . | . . . Repair Stations . | . . . Recycling Units 1 | . 1 . Scanalyzers . | . . . Garrison Access . | . . . Total Hacks 13 | . 10 3 Successful 7 | . 5 2 Failed 6 | . 5 1 Catastrophic 2 | . 1 1 Database Lockouts . | . . . Manual 8 | . 6 2 Terminals 11 | . 8 3 Fabricators . | . . . Repair Stations . | . . . Recycling Units 2 | . 2 . Scanalyzers . | . . . Garrison Access . | . . . Terminal Hacks 3 | . 2 1 Robot Analysis 1 | . 1 . Zone Layout 2 | . 1 1 Fabricator Hacks . | . . . Repair Station Hacks . | . . . Recycling Unit Hacks 1 | . 1 . Retrieve Components 1 | . 1 . Scanalyzer . | . . . Garrison Access Hacks . | . . . Unauthorized Hacks 3 | . 2 1 Terminals 3 | . 2 1 Track 1 | . 1 . Botnet 2 | . 1 1 Fabricators . | . . . Repair Stations . | . . . Recycling Units . | . . . Scanalyzers . | . . . Garrison Access . | . . . Data Cores Recovered . | . . . Used . | . . . Hacking Detections 3 | . 2 1 Full Trace Events . | . . . Feedback Events . | . . . Feedback Blocked . | . . . Robot Schematics Acquired . | . . . Robots Built . | . . . Authchips . | . . . Time . | . . . Total Robot Build Rating . | . . . Part Schematics Acquired . | . . . Parts Built . | . . . Authchips . | . . . Time . | . . . Total Part Build Rating . | . . . Parts Repaired . | . . . Time . | . . . Parts Recycled . | . . . Recycled Matter . | . . . Retrieved Matter . | . . . Retrieved Components 2 | . 2 . Parts Scanalyzed . | . . . Part Schematics Acquired . | . . . Parts Damaged . | . . . Bothacking | -11 -10 -9 ------------ Run | Yrd Mat Mat Used RIF Installer . | . . . Robots Hacked . | . . . Non-combat . | . . . Combat . | . . . Robot Hacks Applied . | . . . Relay Couplers Released . | . . . Fabnet Peak Effective % . | . . . Robots Rewired . | . . . Allies Hacked . | . . . Hacks Repelled . | . . . Allies | -11 -10 -9 -------- Run | Yrd Mat Mat Total Allies . | . . . Largest Group . | . . . Highest-Rated Group . | . . . Highest-Rated Ally . | . . . Total Orders . | . . . Ally Attacks . | . . . Total Damage . | . . . Kills . | . . . Allies Corrupted . | . . . Allies Melted . | . . . Intel | -11 -10 -9 ------- Run | Yrd Mat Mat Active Infowar (turns) 76 | . . 76 Optics 74 | . . 74 ECM 22 | . . 22 Robot Analysis Total 1 | . 1 . Derelict Logs Recovered . | . . . Drone Launches . | . . . Drone Recoveries . | . . . Exploration | -11 -10 -9 ------------- Run | Yrd Mat Mat Turns Passed 316 | 44 106 166 Spaces Moved 408 | 55 178 175 Core 293 | 46 178 69 Treads 5 | 5 . . Legs 4 | 4 . . Wheels . | . . . Hover . | . . . Flight 106 | . . 106 Fastest Speed 50 | 50 50 50 Average Speed 61 | 65 50 72 Slowest Speed 160 | 160 50 155 Overloaded Moves . | . . . Propulsion Burnouts . | . . . Robots Hopped 3 | . . 3 Potential Cave-ins . | . . . Cave-ins Triggered . | . . . Exploration Rate (%) 21 | 4 40 20 Regions Visited 2 Branch Regions . Pre-discovered Areas . | . . . Known Exits Taken . | . . . Unknown Exits Taken 2 | 1 1 . Scrap Searched . | . . . Spaces Dug . | . . . Terrain Destroyed . | . . . Melee . | . . . Projectile . | . . . AOE . | . . . Terrain Rammed . | . . . Walls Destroyed . | . . . Machines Disabled . | . . . Actions | -11 -10 -9 --------- Run | Yrd Mat Mat Total 457 | 61 193 203 Wait . | . . . Move 400 | 54 177 169 Hop 3 | . . 3 Pick Up 11 | . 7 4 Fast Attach 14 | 5 1 8 Attach 3 | . . 3 Detach 4 | 1 . 3 Swap . | . . . Drop 12 | 1 5 6 Fire 9 | . 2 7 Melee . | . . . Ram . | . . . Kick . | . . . Crush 1 | . 1 . Escape Stasis . | . . . Rewire . | . . . Trap . | . . . Miscellaneous . | . . . Route ------- -11/Scrapyard -10/Materials -9/Materials History --------- Turn | Location | Event 3 | -11/Scrapyard | Discovered new exit (range 16) 45 | -11/Scrapyard | Entered Materials 139 | -10/Materials | Discovered new exit (range 16) 151 | -10/Materials | Entered another Materials area 151 | -9/Materials | Evolved 2 slots: Propulsion x2 306 | -9/Materials | Build established: Mutant 317 | -9/Materials | Self-destructed Last Messages --------------- 00256_ K-01 Serf collects debris. 00257_ U-05 Engineer works on Matter Pump. 00259_ K-01 Serf collects debris. 00266_ O-16 Technician: "IFF HANDSHAKE FAILED. SECURING TERMINAL." 00271_ O-16 Technician uses terminal to summon reinforcements. 00271_ ALERT: Hostiles spotted, dispatching reinforcements to Terminal M001. 00271_ O-16 Technician locks terminal. 00280_ Dropped ECM Suite. 00281_ Acquired Particle Charger. 00282_ Dropped Particle Charger. 00283_ Acquired ECM Suite. 00285_ Dropped ECM Suite. 00285_ Acquired ECM Suite. 00317_ Connecting with Terminal... >>Layout(Zone) Retrieving Zone 3A layout... Downloaded map data. Map ----- +----------------------------------------------------+ | ?????????????????????????????????# ??????????? | | ?????????????????????????????????# ???????????? | | ?????????????????????????????????#" ???????????? | | ?????????????????????????????????#T ???????????? | | ?????????????????????????????????#" ???????????? | | ?????????????????????????????????# ???????????? | | ?????????????????????????????????# ???????????? | | ?????????????????????????????????+ #???????????? | | ?????????????????????????????????# #???????????? | | ???????????????????????########### #??????#####? | | ????????? # """ ######## !!#? | | ????????? # """ !!#? | | ????????? # !!#? | | ????????? # !!#? | | ?????????### """ ############+####+#### ==#? | | ???????????# """ #?????# # ## ==#? | | ???????????# """ #?????# # ######? | | ???????????# #?????# # #?????? | | ???????????# #????## # #?????? | | ???????????# """ #????# # ####### | | ???????????# """ #????## # + | | ?????????### """ ####### # # | | ????????? # ##### | | ????????? ###########???# """ | | ????????? "" # #?????# """ | | ?????????########## "T@ # """ ####### """ | | ????????? # "" #/] """ + | | ????????? """ # #]] """ #### | | ????????? "" """ + # #??# """ | | ????????? S"" """ # ##+######### """ | | ????????? "" # """ | | ?????????########## #### ##+###### | | ????????????????####+######### ## | | ????????????????# #???# ## ####### | | ????????????????# """ #???# ## #?????# | | ????????????????# """ #???# ## ??????# | | ????????????????# """ #???# ######??????# | | ????????????????# #???# #???????????# | | ????????????????# """ " #???########???????????# | | ????????????????# """ T #??????????????????????## | | ????????????????# """ " #???????????????????????? | | ?????????????????????????????????????????????????? | | ?????????????????????????????????????????????????? | | | | | | | | | | | | | | | +----------------------------------------------------+ Best States ------------- Heat Dissipation 28 Energy Generation 5 Energy Capacity 100 Matter Stores 293 Matter Capacity 300 Sight Range 18 Terrain Scan Density 10 ECM Strength 1 Evasion (%) 55 Recoil Reduction 1 Item Schematics ----------------- None Robot Schematics ------------------ None Fabricated ------------ Nothing Repaired ---------- Nothing Alien Tech Used ----------------- None Achievements -------------- None Challenges ------------ None Game ------ Seed CobblerContainmentSteel Manual? 0 Play Time 00:07:13 Cumulative 209.0 hours Start 2025.07.17 @ 19:16:35 End 2025.07.27 @ 16:00:12 Sessions 3 Manual Loads 0 Difficulty Rogue Special Mode None Game No. 217 Rogue 217 Adventurer 0 Explorer 0 Win Type - Total 3 Types 3/0/0/0/0/0/0/0/0/0 Lore% 72 Gallery% 69 Achievement% 66 Wizard Run 0 Options --------- Layout 1 ASCII 0 Keyboard 1 Movement Vi Keybinds 0 Fullscreen 1 Font 24/Smallcaps Map View 50x35 Zoom Use 0% Tactical HUD 1 Map Filters NONE Filters NONE Steam 1 RUN: f823e8a8-158a-487f-990c-2c608ce34845